[Event "26th Hit Open-A 2022"]
[Site "Nova Gorica"]
[Date "2022.09.20"]
[Round "7.38"]
[White "Vicic, Mark"]
[Black "Di Lascio, Savino"]
[Result "1/2-1/2"]
[ECO "B07"]
[WhiteElo "1641"]
[BlackElo "1793"]
[Annotator "NA COMBH"]
[PlyCount "90"]
[EventDate "2022.09.16"]
[EventType "swiss"]
[EventCountry "SLO"]
[SourceTitle "playchess.com"]
[Source "ChessBase"]
[SourceQuality "1"]
[TimeControl "5400+30"]

1. d4 {[%emt 0:03:01]} Nf6 {[%emt 0:00:28]} 2. Nf3 {[%emt 0:00:10]} d6 {[%emt 0:00:21]} 3. Nc3 {[%emt 0:00:26]} Nbd7 {[%emt 0:00:33]} 4. e4 {[%emt 0:00:20]} c6 {[%emt 0:00:20]} 5. Bd3 {[%emt 0:01:09]} e5 {[%emt 0:00:24]} 6. O-O {[%emt 0:02:05]} Be7 {[%emt 0:00:20]} 7. Re1 {[%emt 0:02:47]} a6 {[%emt 0:01:18]} 8. b3 {[%emt 0:02:03]} exd4 {[%emt 0:01:59]} 9. Nxd4 {[%emt 0:00:12]} Qa5 {[%emt 0:00:16]} 10. Bb2 {[%emt 0:00:57]} Ne5 {[%emt 0:00:16]} 11. Nf5 {[%emt 0:04:03]} Bxf5 {[%emt 0:00:51]} 12. exf5 {[%emt 0:00:01]} O-O-O {[%emt 0:01:41]} 13. Bf1 {[%emt 0:01:43]} Rhe8 {[%emt 0:00:25]} 14. a3 {[%emt 0:02:44]} Bf8 {[%emt 0:01:24]} 15. b4 {[%emt 0:00:47]} Qc7 {[%emt 0:01:43]} 16. a4 {[%emt 0:01:06]} d5 {[%emt 0:00:11]} 17. b5 {[%emt 0:01:54]} Nfg4 {[%emt 0:00:14]} 18. g3 {[%emt 0:12:54]} Bc5 {[%emt 0:00:23]} 19. Re2 {[%emt 0:02:13]} Nf3+ {[%emt 0:04:02]} 20. Kg2 {[%emt 0:00:50]} Nfxh2 {[%emt 0:01:48]} 21. Bc1 {[%emt 0:12:56]} h5 {[%emt 0:05:01]} 22. f3 {[%emt 0:12:37]} Nxf1 {[%emt 0:01:07]} 23. Qxf1 {[%emt 0:01:01]} Ne3+ {[%emt 0:01:42]} 24. Bxe3 {[%emt 0:00:09]} Rxe3 {[%emt 0:02:03]} 25. Rxe3 {[%emt 0:01:26]} Bxe3 {[%emt 0:00:09]} 26. bxa6 {[%emt 0:00:25]} bxa6 {[%emt 0:00:34]} 27. Qxa6+ {[%emt 0:00:37]} Kd7 {[%emt 0:00:30]} 28. Qd3 {[%emt 0:07:29]} Ba7 {[%emt 0:00:32]} 29. Re1 {[%emt 0:01:11]} Qb6 {[%emt 0:03:28]} 30. Kh3 {[%emt 0:05:37]} Qa5 {[%emt 0:04:45]} 31. f6 {[%emt 0:04:57]} g6 {[%emt 0:00:54]} 32. Re7+ {[%emt 0:01:20]} Kc8 {[%emt 0:00:13]} 33. Rxf7 {[%emt 0:01:49]} d4 {[%emt 0:00:17]} 34. Ne2 {[%emt 0:00:48]} g5 {[%emt 0:01:24]} 35. Qe4 {[%emt 0:03:02]} Qc5 {[%emt 0:01:25]} 36. Qd3 {[%emt 0:01:14]} g4+ {[%emt 0:05:01]} 37. Kh2 {[%emt 0:01:42]} Rd7 {[%emt 0:01:15]} 38. Qa6+ {[%emt 0:04:42]} Kd8 {[%emt 0:04:24]} 39. Rxd7+ {[%emt 0:02:36]} Kxd7 {[%emt 0:00:14]} 40. Qb7+ {[%emt 0:00:39]} Ke6 {[%emt 0:00:36]} 41. f7 {[%emt 0:02:11]} Qxc2 {[%emt 0:01:15]} 42. f8=Q {[%emt 0:00:53]} Qxe2+ {[%emt 0:00:40]} 43. Kg1 {[%emt 0:00:42]} Qe1+ {[%emt 0:01:08]} 44. Kg2 {[%emt 0:00:17]} Qe2+ {[%emt 0:01:31]} 45. Kg1 {[%emt 0:00:02]} Ke5 {[%emt 0:00:25]} 1/2-1/2

[Event "26th Hit Open-A 2022"]
[Site "Nova Gorica"]
[Date "2022.09.20"]
[Round "7.39"]
[White "Savoia, Serge"]
[Black "Ivsek, Cveto"]
[Result "0-1"]
[ECO "B18"]
[WhiteElo "1636"]
[BlackElo "1763"]
[Annotator "NA COMBH"]
[PlyCount "74"]
[EventDate "2022.09.16"]
[EventType "swiss"]
[EventCountry "SLO"]
[SourceTitle "playchess.com"]
[Source "ChessBase"]
[SourceQuality "1"]
[TimeControl "5400+30"]

1. e4 {[%emt 0:00:02]} c6 {[%emt 0:00:22]} 2. d4 {[%emt 0:00:13]} d5 {[%emt 0:00:15]} 3. Nd2 {[%emt 0:00:11]} dxe4 {[%emt 0:03:14]} 4. Nxe4 {[%emt 0:00:27]} Bf5 {[%emt 0:01:30]} 5. Ng3 {[%emt 0:00:48]} Bg6 {[%emt 0:01:40]} 6. h4 {[%emt 0:00:20]} h6 {[%emt 0:01:13]} 7. h5 {[%emt 0:00:12]} Bh7 {[%emt 0:00:14]} 8. c3 {[%emt 0:00:16]} Nf6 {[%emt 0:01:38]} 9. Bd3 {[%emt 0:00:43]} Bxd3 {[%emt 0:03:14]} 10. Qxd3 {[%emt 0:00:11]} e6 {[%emt 0:00:56]} 11. N1e2 {[%emt 0:01:56]} Bd6 {[%emt 0:02:03]} 12. Ne4 {[%emt 0:01:04]} Nxe4 {[%emt 0:03:20]} 13. Qxe4 {[%emt 0:00:10]} Nd7 {[%emt 0:06:27]} 14. Bf4 {[%emt 0:01:46]} Nf6 {[%emt 0:02:37]} 15. Qc2 {[%emt 0:00:53]} Bxf4 {[%emt 0:06:41]} 16. Nxf4 {[%emt 0:00:13]} Nd5 {[%emt 0:00:48]} 17. Nd3 {[%emt 0:00:33]} Qg5 {[%emt 0:01:12]} 18. g3 {[%emt 0:02:03]} O-O {[%emt 0:06:30]} 19. Ne5 {[%emt 0:01:25]} c5 {[%emt 0:03:45]} 20. Nd7 {[%emt 0:02:07]} Rfe8 {[%emt 0:15:22]} 21. Nxc5 {[%emt 0:01:55]} Nf6 {[%emt 0:00:11]} 22. Ne4 {[%emt 0:01:11]} Nxe4 {[%emt 0:04:04]} 23. Qxe4 {[%emt 0:00:09]} b6 {[%emt 0:00:17]} 24. Qe3 {[%emt 0:01:16]} Qd5 {[%emt 0:01:49]} 25. f3 {[%emt 0:02:40]} e5 {[%emt 0:01:48]} 26. Kf2 {[%emt 0:00:21]} exd4 {[%emt 0:00:51]} 27. Qxd4 {[%emt 0:00:18]} Qb5 {[%emt 0:01:01]} 28. Qd2 {[%emt 0:01:15]} Rad8 {[%emt 0:04:11]} 29. Qc2 {[%emt 0:00:36]} Qc5+ {[%emt 0:01:42]} 30. Kg2 {[%emt 0:00:44]} Re3 {[%emt 0:08:13]} 31. Rad1 {[%emt 0:03:09]} Rde8 {[%emt 0:00:37]} 32. Rd2 {[%emt 0:00:46]} Qc4 {[%emt 0:01:13]} 33. Rh4 {[%emt 0:03:49]} Re2+ {[%emt 0:05:30]} 34. Kh3 {[%emt 0:00:22]} Qc8+ {[%emt 0:01:05]} 35. Rg4 {[%emt 0:05:04]} Re1 {[%emt 0:00:38]} 36. Qd3 {[%emt 0:02:55]} Qc5 {[%emt 0:03:16]} 37. Qd5 {[%emt 0:02:02]} Rh1+ {[%emt 0:00:44]} 0-1

[Event "26th Hit Open-A 2022"]
[Site "Nova Gorica"]
[Date "2022.09.20"]
[Round "7.40"]
[White "Novak, Rok"]
[Black "Gamal, Alaa"]
[Result "1-0"]
[ECO "B01"]
[WhiteElo "1763"]
[BlackElo "1693"]
[Annotator "NA COMBH"]
[PlyCount "43"]
[EventDate "2022.09.16"]
[EventType "swiss"]
[EventCountry "SLO"]
[SourceTitle "playchess.com"]
[Source "ChessBase"]
[SourceQuality "1"]
[TimeControl "5400+30"]

1. e4 {[%emt 0:00:08]} d5 {[%emt 0:02:13]} 2. exd5 {[%emt 0:00:14]} Qxd5 {[%emt 0:00:22]} 3. Nc3 {[%emt 0:00:16]} Qd6 {[%emt 0:00:39]} 4. d4 {[%emt 0:01:12]} Nf6 {[%emt 0:01:45]} 5. Nf3 {[%emt 0:02:44]} g6 {[%emt 0:01:33]} 6. Bc4 {[%emt 0:03:25]} Bg7 {[%emt 0:00:46]} 7. Ne5 {[%emt 0:14:52]} O-O {[%emt 0:02:53]} 8. Nb5 {[%emt 0:03:26]} Qd8 {[%emt 0:07:44]} 9. Bf4 {[%emt 0:03:57]} a6 {[%emt 0:01:41]} 10. Nxf7 {[%emt 0:11:26]} Rxf7 {[%emt 0:01:33]} 11. Bxf7+ {[%emt 0:00:13]} Kxf7 {[%emt 0:00:28]} 12. Nxc7 {[%emt 0:00:13]} Ra7 {[%emt 0:07:57]} 13. d5 {[%emt 0:00:14]} Kg8 {[%emt 0:05:19]} 14. Qd4 {[%emt 0:06:05]} b6 {[%emt 0:03:52]} 15. Qc4 {[%emt 0:04:35]} Nh5 {[%emt 0:03:33]} 16. d6+ {[%emt 0:05:47]} Kh8 {[%emt 0:01:10]} 17. O-O-O {[%emt 0:00:41]} Nxf4 {[%emt 0:01:48]} 18. dxe7 {[%emt 0:01:22]} Qxe7 {[%emt 0:02:45]} 19. Rhe1 {[%emt 0:00:38]} Ne2+ {[%emt 0:11:09]} 20. Rxe2 {[%emt 0:00:57]} Bh6+ {[%emt 0:00:04]} 21. Kb1 {[%emt 0:01:25]} Rxc7 {[%emt 0:01:34]} 22. Rxe7 {[%emt 0:00:41]} 1-0

[Event "26th Hit Open-A 2022"]
[Site "Nova Gorica"]
[Date "2022.09.20"]
[Round "7.41"]
[White "Rigatti, Giorgio"]
[Black "Mihelj, Edvard"]
[Result "1-0"]
[ECO "C41"]
[WhiteElo "1763"]
[BlackElo "1657"]
[Annotator "NA COMBH"]
[PlyCount "91"]
[EventDate "2022.09.16"]
[EventType "swiss"]
[EventCountry "SLO"]
[SourceTitle "playchess.com"]
[Source "ChessBase"]
[SourceQuality "1"]
[TimeControl "5400+30"]

1. e4 {[%emt 0:00:10]} e5 {[%emt 0:00:09]} 2. Nf3 {[%emt 0:00:10]} d6 {[%emt 0:00:25]} 3. d4 {[%emt 0:00:10]} Bg4 {[%emt 0:04:09]} 4. dxe5 {[%emt 0:00:48]} Bxf3 {[%emt 0:00:41]} 5. Qxf3 {[%emt 0:00:09]} dxe5 {[%emt 0:00:16]} 6. Bc4 {[%emt 0:00:30]} Qf6 {[%emt 0:00:49]} 7. Qb3 {[%emt 0:01:12]} b6 {[%emt 0:01:59]} 8. Nc3 {[%emt 0:01:08]} Bd6 {[%emt 0:05:19]} 9. Be3 {[%emt 0:02:35]} Ne7 {[%emt 0:00:30]} 10. O-O-O {[%emt 0:00:30]} O-O {[%emt 0:04:01]} 11. Nb5 {[%emt 0:01:43]} Nbc6 {[%emt 0:01:18]} 12. Nxd6 {[%emt 0:01:02]} cxd6 {[%emt 0:00:13]} 13. Qd3 {[%emt 0:03:07]} Rfd8 {[%emt 0:02:37]} 14. Qd2 {[%emt 0:02:10]} h6 {[%emt 0:00:48]} 15. g4 {[%emt 0:00:26]} Qg6 {[%emt 0:01:09]} 16. f3 {[%emt 0:00:48]} Na5 {[%emt 0:02:13]} 17. Bd3 {[%emt 0:07:51]} Qe6 {[%emt 0:01:35]} 18. b3 {[%emt 0:00:47]} d5 {[%emt 0:03:27]} 19. Qf2 {[%emt 0:04:23]} d4 {[%emt 0:01:10]} 20. Bd2 {[%emt 0:00:10]} Rac8 {[%emt 0:01:06]} 21. Kb2 {[%emt 0:03:24]} Rd6 {[%emt 0:05:59]} 22. Rc1 {[%emt 0:10:45]} Ng6 {[%emt 0:08:14]} 23. Ba6 {[%emt 0:06:18]} Rc7 {[%emt 0:05:22]} 24. Bb4 {[%emt 0:01:45]} Rd8 {[%emt 0:00:49]} 25. Rhd1 {[%emt 0:01:24]} Nf4 {[%emt 0:00:54]} 26. Bd2 {[%emt 0:15:20]} g5 {[%emt 0:04:21]} 27. h4 {[%emt 0:01:11]} Qg6 {[%emt 0:06:54]} 28. Rh1 {[%emt 0:06:46]} Kg7 {[%emt 0:01:29]} 29. hxg5 {[%emt 0:06:21]} Qxg5 {[%emt 0:00:39]} 30. Rh5 {[%emt 0:01:45]} Qe7 {[%emt 0:03:50]} 31. Bxf4 {[%emt 0:02:17]} exf4 {[%emt 0:00:21]} 32. Qh2 {[%emt 0:00:30]} Rc6 {[%emt 0:04:45]} 33. Qxf4 {[%emt 0:05:49]} Rf6 {[%emt 0:03:58]} 34. Qd2 {[%emt 0:01:06]} Rg6 {[%emt 0:02:54]} 35. Rch1 {[%emt 0:00:35]} Rdd6 {[%emt 0:01:08]} 36. e5 {[%emt 0:00:42]} Rc6 {[%emt 0:03:07]} 37. Qxd4 {[%emt 0:01:31]} Rce6 {[%emt 0:02:54]} 38. Bd3 {[%emt 0:02:24]} Rg5 {[%emt 0:00:48]} 39. Qe4 {[%emt 0:00:52]} f5 {[%emt 0:01:50]} 40. Rxg5+ {[%emt 0:05:06]} Qxg5 {[%emt 0:01:38]} 41. gxf5 {[%emt 0:00:45]} Rc6 {[%emt 0:00:39]} 42. f4 {[%emt 0:00:53]} Qg3 {[%emt 0:01:33]} 43. f6+ {[%emt 0:00:11]} Kf7 {[%emt 0:00:22]} 44. Qd5+ {[%emt 0:00:38]} Ke8 {[%emt 0:02:21]} 45. Rxh6 {[%emt 0:00:21]} Rc5 {[%emt 0:00:43]} 46. Rh8+ {[%emt 0:00:10]} 1-0

[Event "26th Hit Open-A 2022"]
[Site "Nova Gorica"]
[Date "2022.09.20"]
[Round "7.42"]
[White "Zlatanovic, Srdjan"]
[Black "Petrovcic, Cvetko"]
[Result "1-0"]
[ECO "A46"]
[WhiteElo "1740"]
[BlackElo "1602"]
[Annotator "NA COMBH"]
[PlyCount "205"]
[EventDate "2022.09.16"]
[EventType "swiss"]
[EventCountry "SLO"]
[SourceTitle "playchess.com"]
[Source "ChessBase"]
[SourceQuality "1"]
[TimeControl "5400+30"]

1. d4 {[%emt 0:00:13]} Nf6 {[%emt 0:00:44]} 2. Nf3 {[%emt 0:00:09]} e6 {[%emt 0:01:30]} 3. Bf4 {[%emt 0:00:09]} Nh5 {[%emt 0:00:42]} 4. Bg3 {[%emt 0:00:10]} Nc6 {[%emt 0:01:15]} 5. e3 {[%emt 0:00:11]} Ne7 {[%emt 0:01:43]} 6. c3 {[%emt 0:00:11]} Nxg3 {[%emt 0:02:52]} 7. hxg3 {[%emt 0:00:01]} d6 {[%emt 0:01:25]} 8. Nbd2 {[%emt 0:00:10]} Bd7 {[%emt 0:00:48]} 9. Qb3 {[%emt 0:00:14]} b6 {[%emt 0:02:16]} 10. Bd3 {[%emt 0:00:08]} Ng6 {[%emt 0:01:13]} 11. a4 {[%emt 0:00:59]} a5 {[%emt 0:01:12]} 12. Bb1 {[%emt 0:02:11]} Be7 {[%emt 0:00:33]} 13. Be4 {[%emt 0:01:43]} d5 {[%emt 0:00:58]} 14. Bd3 {[%emt 0:00:24]} Bd6 {[%emt 0:05:41]} 15. Qc2 {[%emt 0:00:40]} f5 {[%emt 0:01:47]} 16. c4 {[%emt 0:01:49]} dxc4 {[%emt 0:04:23]} 17. Bxc4 {[%emt 0:01:07]} Bb4 {[%emt 0:00:27]} 18. O-O {[%emt 0:00:37]} O-O {[%emt 0:00:16]} 19. Rfc1 {[%emt 0:00:10]} Bd6 {[%emt 0:01:56]} 20. Bd3 {[%emt 0:07:42]} e5 {[%emt 0:04:12]} 21. dxe5 {[%emt 0:00:34]} Nxe5 {[%emt 0:02:28]} 22. Nxe5 {[%emt 0:02:36]} Bxe5 {[%emt 0:00:24]} 23. Nc4 {[%emt 0:02:21]} Bf6 {[%emt 0:02:06]} 24. Bxf5 {[%emt 0:00:39]} Bxf5 {[%emt 0:00:52]} 25. Qxf5 {[%emt 0:00:02]} Rf7 {[%emt 0:01:25]} 26. Rd1 {[%emt 0:01:56]} Qe7 {[%emt 0:02:01]} 27. Qc2 {[%emt 0:01:32]} Raf8 {[%emt 0:00:09]} 28. Rd2 {[%emt 0:00:21]} Bg5 {[%emt 0:01:00]} 29. Rad1 {[%emt 0:03:48]} Qe6 {[%emt 0:01:21]} 30. b3 {[%emt 0:01:02]} h5 {[%emt 0:01:40]} 31. Nb2 {[%emt 0:02:01]} h4 {[%emt 0:00:24]} 32. gxh4 {[%emt 0:00:13]} Bxh4 {[%emt 0:00:02]} 33. Nd3 {[%emt 0:00:07]} Qh6 {[%emt 0:00:29]} 34. Nf4 {[%emt 0:00:39]} Qf6 {[%emt 0:04:51]} 35. Qc4 {[%emt 0:03:07]} g5 {[%emt 0:01:26]} 36. Nh3 {[%emt 0:00:29]} Kh8 {[%emt 0:04:04]} 37. Qd4 {[%emt 0:03:29]} Qxd4 {[%emt 0:01:45]} 38. exd4 {[%emt 0:00:53]} g4 {[%emt 0:00:14]} 39. g3 {[%emt 0:00:21]} Be7 {[%emt 0:01:07]} 40. Nf4 {[%emt 0:00:21]} Kh7 {[%emt 0:03:24]} 41. Kg2 {[%emt 0:00:56]} Bg5 {[%emt 0:03:51]} 42. Rh1+ {[%emt 0:01:52]} Bh6 {[%emt 0:00:02]} 43. Ne6 {[%emt 0:00:26]} Rg8 {[%emt 0:00:14]} 44. Rc2 {[%emt 0:01:11]} Kg6 {[%emt 0:05:13]} 45. Rxc7 {[%emt 0:01:32]} Rxc7 {[%emt 0:00:04]} 46. Nxc7 {[%emt 0:00:01]} Rc8 {[%emt 0:01:04]} 47. Nb5 {[%emt 0:01:38]} Rc2 {[%emt 0:00:19]} 48. Re1 {[%emt 0:01:03]} Rb2 {[%emt 0:02:02]} 49. Re6+ {[%emt 0:02:29]} Kg7 {[%emt 0:00:32]} 50. Nd6 {[%emt 0:01:24]} Kh7 {[%emt 0:06:39]} 51. Nf5 {[%emt 0:00:10]} Bf8 {[%emt 0:01:11]} 52. Rxb6 {[%emt 0:00:19]} Bb4 {[%emt 0:00:09]} 53. Rh6+ {[%emt 0:00:51]} Kg8 {[%emt 0:00:10]} 54. Rg6+ {[%emt 0:00:34]} Kf7 {[%emt 0:00:07]} 55. Rxg4 {[%emt 0:00:33]} Rxb3 {[%emt 0:00:07]} 56. d5 {[%emt 0:00:34]} Rb2 {[%emt 0:00:49]} 57. Nd4 {[%emt 0:01:37]} Bc5 {[%emt 0:00:44]} 58. Rf4+ {[%emt 0:00:10]} Ke7 {[%emt 0:00:47]} 59. Nc6+ {[%emt 0:00:12]} Kd6 {[%emt 0:01:05]} 60. Nxa5 {[%emt 0:00:38]} Kxd5 {[%emt 0:00:43]} 61. Nc4 {[%emt 0:01:40]} Ra2 {[%emt 0:00:20]} 62. g4 {[%emt 0:00:30]} Ke6 {[%emt 0:01:28]} 63. Na5 {[%emt 0:00:19]} Bd6 {[%emt 0:04:15]} 64. Rc4 {[%emt 0:02:19]} Kf7 {[%emt 0:00:45]} 65. g5 {[%emt 0:00:23]} Be5 {[%emt 0:01:22]} 66. Nc6 {[%emt 0:00:55]} Bc7 {[%emt 0:01:19]} 67. Nb4 {[%emt 0:00:22]} Rxa4 {[%emt 0:00:40]} 68. Rxc7+ {[%emt 0:00:02]} Kg6 {[%emt 0:00:19]} 69. Rc4 {[%emt 0:00:37]} Kxg5 {[%emt 0:00:03]} 70. Kg3 {[%emt 0:00:31]} Ra3+ {[%emt 0:01:36]} 71. f3 {[%emt 0:00:04]} Ra1 {[%emt 0:00:16]} 72. Rc5+ {[%emt 0:00:10]} Kf6 {[%emt 0:00:13]} 73. Kf4 {[%emt 0:00:07]} Rf1 {[%emt 0:01:10]} 74. Rc6+ {[%emt 0:00:03]} Ke7 {[%emt 0:00:12]} 75. Nd3 {[%emt 0:00:52]} Rd1 {[%emt 0:01:23]} 76. Ne5 {[%emt 0:00:13]} Rf1 {[%emt 0:00:12]} 77. Kf5 {[%emt 0:00:16]} Rf2 {[%emt 0:02:33]} 78. Rc7+ {[%emt 0:00:09]} Kf8 {[%emt 0:01:16]} 79. Kf6 {[%emt 0:00:12]} Kg8 {[%emt 0:00:01]} 80. Kg6 {[%emt 0:01:48]} Kf8 {[%emt 0:00:17]} 81. Rf7+ {[%emt 0:00:15]} Kg8 {[%emt 0:00:49]} 82. Nd7 {[%emt 0:00:58]} Rg2+ {[%emt 0:00:55]} 83. Kf6 {[%emt 0:00:12]} Rf2 {[%emt 0:00:18]} 84. Ne5 {[%emt 0:00:24]} Rf1 {[%emt 0:00:16]} 85. Ke7 {[%emt 0:00:35]} Re1 {[%emt 0:00:12]} 86. f4 {[%emt 0:00:01]} Re2 {[%emt 0:00:32]} 87. Kf6 {[%emt 0:00:21]} Re1 {[%emt 0:00:44]} 88. Ng4 {[%emt 0:00:35]} Rg1 {[%emt 0:00:20]} 89. Nh6+ {[%emt 0:00:31]} Kh8 {[%emt 0:00:05]} 90. Nf5 {[%emt 0:01:20]} Rf1 {[%emt 0:00:40]} 91. Kg5 {[%emt 0:00:26]} Rg1+ {[%emt 0:00:14]} 92. Kh5 {[%emt 0:00:20]} Kg8 {[%emt 0:01:09]} 93. Nh6+ {[%emt 0:00:55]} Kh8 {[%emt 0:00:27]} 94. Rf8+ {[%emt 0:00:02]} Kh7 {[%emt 0:00:32]} 95. Rf7+ {[%emt 0:01:13]} Kh8 {[%emt 0:00:02]} 96. Ng4 {[%emt 0:00:17]} Kg8 {[%emt 0:00:09]} 97. Ra7 {[%emt 0:00:01]} Kf8 {[%emt 0:00:40]} 98. f5 {[%emt 0:00:02]} Rg3 {[%emt 0:00:54]} 99. f6 {[%emt 0:00:05]} Rg1 {[%emt 0:01:11]} 100. Ne5 {[%emt 0:00:18]} Rh1+ {[%emt 0:00:26]} 101. Kg4 {[%emt 0:00:01]} Rg1+ {[%emt 0:00:22]} 102. Kf5 {[%emt 0:00:08]} Rh1 {[%emt 0:00:35]} 103. Ra8# {[%emt 0:00:02]} 1-0

[Event "26th Hit Open-A 2022"]
[Site "Nova Gorica"]
[Date "2022.09.20"]
[Round "7.43"]
[White "Juvan, Vid"]
[Black "Bajec, Borut"]
[Result "0-1"]
[ECO "B30"]
[WhiteElo "1564"]
[BlackElo "1732"]
[Annotator "NA COMBH"]
[PlyCount "104"]
[EventDate "2022.09.16"]
[EventType "swiss"]
[EventCountry "SLO"]
[SourceTitle "playchess.com"]
[Source "ChessBase"]
[SourceQuality "1"]
[TimeControl "5400+30"]

1. e4 {[%emt 0:00:03]} c5 {[%emt 0:00:38]} 2. Nf3 {[%emt 0:00:13]} Nc6 {[%emt 0:00:09]} 3. Bb5 {[%emt 0:00:04]} a6 {[%emt 0:00:34]} 4. Bxc6 {[%emt 0:00:07]} bxc6 {[%emt 0:00:08]} 5. b3 {[%emt 0:01:58]} d6 {[%emt 0:00:24]} 6. d4 {[%emt 0:00:55]} cxd4 {[%emt 0:00:26]} 7. Nxd4 {[%emt 0:00:17]} Bd7 {[%emt 0:01:44]} 8. c4 {[%emt 0:01:29]} Nf6 {[%emt 0:02:53]} 9. Nc3 {[%emt 0:07:28]} e5 {[%emt 0:04:55]} 10. Nc2 {[%emt 0:02:32]} Be7 {[%emt 0:00:22]} 11. O-O {[%emt 0:00:37]} O-O {[%emt 0:00:07]} 12. Bg5 {[%emt 0:02:56]} Be6 {[%emt 0:00:22]} 13. Re1 {[%emt 0:07:46]} h6 {[%emt 0:09:27]} 14. Bh4 {[%emt 0:01:32]} Qd7 {[%emt 0:03:29]} 15. Qe2 {[%emt 0:04:03]} Nh7 {[%emt 0:05:48]} 16. Bg3 {[%emt 0:02:30]} f5 {[%emt 0:01:08]} 17. f4 {[%emt 0:03:02]} fxe4 {[%emt 0:03:48]} 18. fxe5 {[%emt 0:04:14]} d5 {[%emt 0:00:36]} 19. Rad1 {[%emt 0:00:40]} Bg4 {[%emt 0:00:46]} 20. Qd2 {[%emt 0:04:53]} Bxd1 {[%emt 0:02:37]} 21. Rxd1 {[%emt 0:00:01]} Bc5+ {[%emt 0:00:58]} 22. Kh1 {[%emt 0:00:45]} Qf5 {[%emt 0:00:41]} 23. h3 {[%emt 0:02:27]} Rad8 {[%emt 0:04:53]} 24. Nd4 {[%emt 0:06:09]} Bxd4 {[%emt 0:06:29]} 25. Qxd4 {[%emt 0:00:50]} Kh8 {[%emt 0:01:10]} 26. cxd5 {[%emt 0:05:31]} cxd5 {[%emt 0:00:19]} 27. Nxd5 {[%emt 0:03:43]} Ng5 {[%emt 0:00:41]} 28. Qc4 {[%emt 0:06:44]} Nxh3 {[%emt 0:11:36]} 29. Re1 {[%emt 0:08:37]} Ng5 {[%emt 0:02:12]} 30. Nf4 {[%emt 0:01:34]} Kh7 {[%emt 0:02:02]} 31. Qxa6 {[%emt 0:01:48]} Ra8 {[%emt 0:01:38]} 32. Qe2 {[%emt 0:02:21]} Ra3 {[%emt 0:04:26]} 33. Nd5 {[%emt 0:01:37]} Qe6 {[%emt 0:03:08]} 34. Nc3 {[%emt 0:00:42]} Qc6 {[%emt 0:00:43]} 35. Qb2 {[%emt 0:02:27]} Rfa8 {[%emt 0:00:39]} 36. Na4 {[%emt 0:00:14]} R3xa4 {[%emt 0:00:43]} 37. bxa4 {[%emt 0:00:14]} Qxa4 {[%emt 0:01:07]} 38. Re2 {[%emt 0:00:30]} Qd1+ {[%emt 0:00:41]} 39. Kh2 {[%emt 0:01:10]} Rf8 {[%emt 0:00:34]} 40. Qd2 {[%emt 0:01:04]} Qa4 {[%emt 0:01:56]} 41. Qc2 {[%emt 0:00:41]} Qe8 {[%emt 0:00:46]} 42. Bh4 {[%emt 0:01:32]} Qh5 {[%emt 0:00:32]} 43. g3 {[%emt 0:00:30]} Nf3+ {[%emt 0:00:24]} 44. Kg2 {[%emt 0:00:23]} Nxh4+ {[%emt 0:00:25]} 45. gxh4 {[%emt 0:00:08]} Qg4+ {[%emt 0:01:04]} 46. Kh2 {[%emt 0:00:43]} Qxh4+ {[%emt 0:02:49]} 47. Kg2 {[%emt 0:01:46]} Rf4 {[%emt 0:00:15]} 48. e6 {[%emt 0:01:52]} Qg5+ {[%emt 0:01:21]} 49. Kh1 {[%emt 0:00:15]} Rf1+ {[%emt 0:00:32]} 50. Kh2 {[%emt 0:00:07]} Qg1+ {[%emt 0:00:35]} 51. Kh3 {[%emt 0:00:07]} Rf3+ {[%emt 0:00:06]} 52. Kh4 {[%emt 0:00:11]} Qg5# {[%emt 0:00:28]} 0-1

[Event "26th Hit Open-A 2022"]
[Site "Nova Gorica"]
[Date "2022.09.20"]
[Round "7.44"]
[White "Budai, Federico"]
[Black "Guid, Taja"]
[Result "1/2-1/2"]
[ECO "B47"]
[WhiteElo "1712"]
[BlackElo "1511"]
[Annotator "NA COMBH"]
[PlyCount "42"]
[EventDate "2022.09.16"]
[EventType "swiss"]
[EventCountry "SLO"]
[SourceTitle "playchess.com"]
[Source "ChessBase"]
[SourceQuality "1"]
[TimeControl "5400+30"]

1. e4 {[%emt 0:00:03]} c5 {[%emt 0:00:04]} 2. Nf3 {[%emt 0:00:10]} e6 {[%emt 0:00:17]} 3. d4 {[%emt 0:00:10]} cxd4 {[%emt 0:00:06]} 4. Nxd4 {[%emt 0:00:09]} Nc6 {[%emt 0:00:10]} 5. Nc3 {[%emt 0:01:12]} Qc7 {[%emt 0:00:13]} 6. a3 {[%emt 0:01:59]} a6 {[%emt 0:00:10]} 7. Be2 {[%emt 0:00:22]} Nf6 {[%emt 0:00:26]} 8. O-O {[%emt 0:02:26]} Nxd4 {[%emt 0:10:02]} 9. Qxd4 {[%emt 0:03:32]} Bc5 {[%emt 0:00:13]} 10. Qd3 {[%emt 0:01:11]} O-O {[%emt 0:04:29]} 11. Bg5 {[%emt 0:09:31]} Qe5 {[%emt 0:12:53]} 12. Bh4 {[%emt 0:11:50]} Nh5 {[%emt 0:05:53]} 13. Bxh5 {[%emt 0:13:11]} Qxh5 {[%emt 0:00:08]} 14. Bg3 {[%emt 0:00:21]} f5 {[%emt 0:14:35]} 15. exf5 {[%emt 0:07:28]} Rxf5 {[%emt 0:00:48]} 16. Ne4 {[%emt 0:12:19]} Rd5 {[%emt 0:11:34]} 17. Qb3 {[%emt 0:05:10]} b5 {[%emt 0:06:26]} 18. Nxc5 {[%emt 0:06:02]} Rxc5 {[%emt 0:00:08]} 19. Rad1 {[%emt 0:02:31]} Qf5 {[%emt 0:08:36]} 20. c3 {[%emt 0:04:19]} d5 {[%emt 0:02:11]} 21. Rfe1 {[%emt 0:00:48]} Bd7 {[%emt 0:01:21]} 1/2-1/2